Cogmind - Beta 15 @@@ ROGUE MODE // 2025.05.06 @ 23:04:49 Player: VVRLD_D35TR0YER Result: Destroyed by 7W-IIV(R) with Subdweller Laser Performance ------------- Evolutions (0) 0 Regions Visited (2) 400 Robots Destroyed (33) 165 Value Destroyed (784) 784 Prototype IDs (2) 40 Alien Tech Used (0) 0 Bonus (0) 0 TOTAL SCORE: 1389 Bonus ------- None Cogmind --------- Core Integrity 0/250 Matter 1/300 Energy 144/160 System Corruption 0% Temperature Cool (6) Movement Rolling (230) Ox10 Location -10/Subcaves Parts ------- > --- POWER (1) -------- Light Nuclear Core > --- PROPULSION (2) --- Wheel Wheel > --- UTILITY (2) ------ Humpback > --- WEAPON (2) ------- Riot Gun Flail > --- INVENTORY (35) --- Light Treads Light Treads Light Treads Spiked Treads Subdweller Monowheel Subdweller Monowheel Subdweller Monowheel Cooling System Cooling System Cooling System Cooling System Large Storage Unit Small Matter Pod (50) Medium Matter Pod (100) Structural Scanner Structural Scanner Subdweller Optics Seismic Detector Improved Targeting Computer Improved Targeting Computer Makeshift Kinetic Plating Shield Generator Subdweller Laser Shotgun Shotgun Subdweller Machine Gun Subdweller Machine Gun Subdweller Machine Gun Barrage Gun Grenade Launcher Grenade Launcher Enhanced Flamer Peak State ------------ > --- POWER ------------ Light Nuclear Core > --- PROPULSION ------- Wheel Wheel > --- UTILITY ---------- Humpback > --- WEAPON ----------- Riot Gun Enhanced Flamer > --- INVENTORY -------- Light Treads Light Treads Light Treads Light Treads Wheel Wheel Wheel Wheel Subdweller Monowheel Subdweller Monowheel Cooling System Cooling System Cooling System Cooling System Large Storage Unit Small Matter Pod Medium Matter Pod Structural Scanner Structural Scanner Subdweller Optics Seismic Detector Improved Targeting Computer Improved Targeting Computer Shield Generator Subdweller Laser Shotgun Shotgun Subdweller Machine Gun Subdweller Machine Gun Subdweller Machine Gun Barrage Gun Grenade Launcher Grenade Launcher Grenade Launcher Flail [Rating: 18] Favorites ----------- Power Ion Engine Engine Ion Engine Power Core Light Nuclear Core Propulsion Wheel Treads Light Treads Leg Aluminum Leg Wheel Wheel Utility Humpback Device Improved Heat Sink Storage Humpback Processor Improved Targeting Computer Weapon Shotgun Energy Gun Riot Gun Ballistic Gun Shotgun Launcher Grenade Launcher Special Weapon Enhanced Flamer Impact Weapon Flail Build | -11 -10 -10 ------- Run | Yrd Mat Sub Slots Evolved . | . . . Power . | . . . Propulsion . | . . . Utility . | . . . Weapon . | . . . Parts Attached 39 | 6 18 15 Power 4 | 1 3 . Engine 3 | 1 2 . Core 1 | . 1 . Reactor . | . . . Propulsion 14 | 2 6 6 Treads 4 | . 3 1 Leg 3 | 2 1 . Wheel 7 | . 2 5 Hover . | . . . Flight . | . . . Utility 7 | 1 6 . Device 1 | . 1 . Storage 4 | 1 3 . Processor 2 | . 2 . Hackware . | . . . Protection . | . . . Artifact . | . . . Weapon 14 | 2 3 9 Energy Gun 1 | . . 1 Energy Cannon . | . . . Ballistic Gun 8 | 2 3 3 Ballistic Cannon . | . . . Launcher 3 | . . 3 Special Weapon 1 | . . 1 Impact Weapon 1 | . . 1 Slashing Weapon . | . . . Piercing Weapon . | . . . Special Melee Weapon . | . . . Unidentified Prototypes . | . . . Parts Lost 7 | . 2 5 Power 2 | . 1 1 Propulsion 2 | . . 2 Utility 1 | . 1 . Weapon 2 | . . 2 Highest Loss Streak 2 | . 2 2 To Critical Strikes . | . . . Average Backups 27 | 2 19 34 Power . | . . . Propulsion 6 | 1 4 8 Utility 10 | . 6 14 Weapon 9 | . 7 11 Tool/Special . | . . . Unused Backups 30 | . 6 24 Power . | . . . Propulsion 7 | . 4 3 Utility 14 | . . 14 Weapon 9 | . 2 7 Tool/Special . | . . . Average Slot Usage (%) 87 | . 91 84 Engine 8 | . 12 4 Core 5 | . . 9 Treads 4 | . 9 . Leg 2 | . 6 . Wheel 20 | . 11 27 Storage 14 | . 14 14 Processor 2 | . 6 . Energy Gun 3 | . . 5 Ballistic Gun 20 | . 27 14 Impact Weapon 3 | . . 6 Peak Build Rating 18 | 6 14 18 Average Rating 14 | 4 12 16 On Entrance 6 | . 6 14 Naked Turns . | . . . Heaviest Build 212 | 10 211 212 Greatest Support 40 | 20 40 30 Greatest Overweight (x) 20 | 1 20 10 Average Overweight (x) 6 | . 4 8 Largest Inventory Capacity 35 | 8 35 35 Average Capacity 29 | 6 22 35 Most Carried 35 | 6 35 35 Average Carried 27 | 2 19 34 Final Capacity 35 | 8 35 35 Final Carried 35 | 6 35 32 Class Distribution -------------------- 74% | Hauler-Mutant 25% | Mutant Dominant Class ---------------- Mutant | -10/Materials Hauler-Mutant | -10/Subcaves Resources | -11 -10 -10 ----------- Run | Yrd Mat Sub Matter Collected 1141 | 218 629 294 Remotely . | . . . Salvage Created 913 | . 567 346 Parts 69 | . 47 22 Haulers Intercepted 1 | . 1 . Recyclers Shooed 3 | . 3 . Parts Field Recycled . | . . . Retrieved Matter . | . . . Parts Self-Destructed 14 | . . 14 Prevented . | . . . Kills | -11 -10 -10 ------- Run | Yrd Mat Sub Combat Hostiles Destroyed 23 | . 11 12 Guns 18 | . 11 7 AOE 5 | . . 5 Classes Destroyed 10 | . 8 2 Worker 3 | . 3 . Builder 1 | . 1 . Hauler 1 | . 1 . Recycler 2 | . 2 . Turret 1 | . . 1 Watcher 2 | . 2 . Swarmer 7 | . 3 4 Grunt 8 | . 6 2 Sentry 1 | . . 1 Subdweller 7 | . 2 5 Best Kill Streak 7 | . 7 4 Combat Bots Only 5 | . 5 4 Max Kills in Single Turn 2 | . 2 2 Gunslinging 1 | . 1 . Exploded 2 | . . 2 Melee . | . . . Uniques/NPCs Destroyed . | . . . Combat | -11 -10 -10 -------- Run | Yrd Mat Sub Hostile Shots Fired 173 | . 40 133 Missed 71 | . 13 58 Hits 102 | . 27 75 Projectile 102 | . 27 75 AOE 1 | . 1 . Damage Taken 1443 | . 497 946 Core 266 | . 52 214 Absorbed by Shields . | . . . Regen/Repaired (Parts) 76 | . 76 . Core Remaining (%) 100 | 100 . . Volleys Fired 91 | . 47 44 Largest 2 | . 2 2 Hottest 78 | . 46 78 Shots Fired 168 | . 94 74 Gun 156 | . 94 62 Cannon . | . . . Launcher 12 | . . 12 Special . | . . . Kinetic 141 | . 94 47 Thermal . | . . . Explosive 12 | . . 12 Electromagnetic 15 | . . 15 Robot Hit Streak 9 | . 9 9 Robot Miss Streak 5 | . 5 3 Penetration Max . | . . . Secondary Targets 2 | . 1 1 Max Gunslinging Chain 1 | . 1 1 Shots Hit Robots 110 | . 62 48 Core Hits 74 | . 43 31 Critical Kills . | . . . Critical Parts Destroyed 1 | . 1 . Critical Strikes 1 | . 1 . Destroy 1 | . 1 . Melee Attacks 43 | . . 43 Impact 43 | . . 43 Slashing . | . . . Piercing . | . . . Sneak Attacks . | . . . Combat Hostiles . | . . . Follow-up Attacks . | . . . Damage Inflicted 2034 | . 1094 940 Guns 1573 | . 834 739 Cannons . | . . . Explosions 416 | . 215 201 Melee . | . . . Ramming 45 | . 45 . Kinetic 1357 | . 834 523 Thermal 215 | . 215 . Explosive 201 | . . 201 Electromagnetic 216 | . . 216 Impact . | . . . Slashing . | . . . Piercing . | . . . Highest Corruption . | . . . Average Corruption . | . . . Corruption Purged . | . . . Corruption Blocked . | . . . Overload Shots . | . . . Overflow Damage 161 | . 160 1 Projectiles . | . . . Explosions 161 | . 160 1 Melee . | . . . Knockbacks . | . . . Impact . | . . . Kinetic . | . . . Secondary . | . . . Self-Inflicted Damage 148 | . 121 27 Shots 3 | . 1 2 Rammed 5 | . 5 . Targets Rammed 10 | . 10 . Kicked 4 | . 4 . Crushed 1 | . 1 . Highest Temperature 18 | . 18 8 Average Temperature 4 | . 6 2 Received Heat Transfer 522 | . 120 402 Siege Activations . | . . . Martial Activations . | . . . Shielding Activations . | . . . Robots Disrupted . | . . . Combat Hostiles . | . . . Robots Corrupted . | . . . Combat Hostiles . | . . . Parts Fried . | . . . Impact Corruptions . | . . . Robots Melted . | . . . Combat Hostiles . | . . . Parts Melted . | . . . Heat Transferred 100 | . 100 . Parts Sabotaged . | . . . Parts Stolen . | . . . Parts Stripped . | . . . Power Chain Reactions . | . . . Alert | -11 -10 -10 ------- Run | Yrd Mat Sub Maximum Alert Level . | . . . Low Security (%) 100 | 100 100 . Level 1 . | . . . Level 2 . | . . . Level 3 . | . . . Level 4 . | . . . Level 5 . | . . . High Security . | . . . Max Security . | . . . Peak Influence 199 | . 199 . Initial . | . . . Average 32 | . 34 . Influence Increases 807 | . 392 415 Destroy 0b10 Robot/C 340 | . 180 160 Destroy 0b10 Robot/NC 45 | . 45 . Destroy Leader 46 | . 46 . Successful Hack 5 | . 5 . Disable Machine 30 | . 30 . Destroy Structure 26 | . 26 . Lose Combat Pursuer 315 | . 60 255 Influence Decreases 478 | . 392 86 Time Decay 428 | . 372 56 Lost Part 50 | . 20 30 Squads Dispatched 2 | . 2 . Investigation 1 | . 1 . Extermination . | . . . Reinforcement 1 | . 1 . Assault . | . . . Garrison . | . . . Intercept . | . . . Searches Triggered . | . . . Construction Impeded . | . . . Haulers Reinforced . | . . . Active Scanning Responses . | . . . Cargo Convoy Interrupts . | . . . Stealth | -11 -10 -10 --------- Run | Yrd Mat Sub Distress Signals 3 | . 3 . Communications Jammed . | . . . Distress Signals . | . . . Times Spotted 45 | . 25 20 Peak Tracking Total 7 | . 7 4 Tactical Retreats 7 | . 2 5 Traps | -11 -10 -10 ------- Run | Yrd Mat Sub Traps Triggered 2 | . . 2 Indirectly . | . . . Trap Hack Attempts . | . . . Triggered . | . . . Disarmed . | . . . Reprogrammed . | . . . Reused . | . . . Traps Extracted . | . . . Installed . | . . . Triggered . | . . . Machines | -11 -10 -10 ---------- Run | Yrd Mat Sub Machines Disabled 4 | . 2 2 Max in Single Turn 2 | . 2 1 Machines Repaired . | . . . Machines Dismantled . | . . . Machines Sabotaged . | . . . Overloaded Fab Kills . | . . . Hacking | -11 -10 -10 --------- Run | Yrd Mat Sub Machines Accessed 11 | . 8 3 Terminals 5 | . 5 . Fabricators . | . . . Repair Stations 1 | . 1 . Recycling Units 2 | . 2 . Scanalyzers . | . . . Garrison Access . | . . . Total Hacks 33 | . 27 6 Successful 18 | . 12 6 Failed 15 | . 15 . Catastrophic 3 | . 3 . Database Lockouts . | . . . Manual 8 | . 8 . Terminals 16 | . 16 . Fabricators . | . . . Repair Stations 8 | . 8 . Recycling Units 3 | . 3 . Scanalyzers . | . . . Garrison Access . | . . . Terminal Hacks 9 | . 3 6 Record 5 | . . 5 Prototype ID Bank 1 | . 1 . Open Door 1 | . . 1 Terminal Index 1 | . 1 . Hauler Manifests 1 | . 1 . Fabricator Hacks . | . . . Repair Station Hacks 6 | . 6 . Scan Component 3 | . 3 . Repair 3 | . 3 . Recycling Unit Hacks 3 | . 3 . Report Inventory 2 | . 2 . Retrieve Components 1 | . 1 . Scanalyzer . | . . . Garrison Access Hacks . | . . . Unauthorized Hacks . | . . . Terminals . | . . . Fabricators . | . . . Repair Stations . | . . . Recycling Units . | . . . Scanalyzers . | . . . Garrison Access . | . . . Data Cores Recovered . | . . . Used . | . . . Hacking Detections 5 | . 5 . Full Trace Events 2 | . 2 . Feedback Events . | . . . Feedback Blocked . | . . . Robot Schematics Acquired . | . . . Robots Built . | . . . Authchips . | . . . Time . | . . . Total Robot Build Rating . | . . . Part Schematics Acquired . | . . . Parts Built . | . . . Authchips . | . . . Time . | . . . Total Part Build Rating . | . . . Parts Repaired 3 | . 3 . Time 96 | . 96 . Parts Recycled . | . . . Recycled Matter . | . . . Retrieved Matter . | . . . Retrieved Components 8 | . 8 . Parts Scanalyzed . | . . . Part Schematics Acquired . | . . . Parts Damaged . | . . . Bothacking | -11 -10 -10 ------------ Run | Yrd Mat Sub Used RIF Installer . | . . . Robots Hacked . | . . . Non-combat . | . . . Combat . | . . . Robot Hacks Applied . | . . . Relay Couplers Released . | . . . Fabnet Peak Effective % . | . . . Robots Rewired . | . . . Allies Hacked . | . . . Hacks Repelled . | . . . Allies | -11 -10 -10 -------- Run | Yrd Mat Sub Total Allies . | . . . Largest Group . | . . . Highest-Rated Group . | . . . Highest-Rated Ally . | . . . Total Orders . | . . . Ally Attacks . | . . . Total Damage . | . . . Kills . | . . . Allies Corrupted . | . . . Allies Melted . | . . . Intel | -11 -10 -10 ------- Run | Yrd Mat Sub Active Infowar (turns) . | . . . Robot Analysis Total . | . . . Derelict Logs Recovered 1 | . . 1 Drone Launches . | . . . Drone Recoveries . | . . . Exploration | -11 -10 -10 ------------- Run | Yrd Mat Sub Turns Passed 5280 | 76 2260 2944 Spaces Moved 2319 | 58 1001 1260 Core 17 | 17 . . Treads 348 | . 348 . Legs 300 | 41 259 . Wheels 1654 | . 394 1260 Hover . | . . . Flight . | . . . Fastest Speed 50 | 50 120 167 Average Speed 196 | 107 185 209 Slowest Speed 560 | 120 560 230 Overloaded Moves . | . . . Propulsion Burnouts . | . . . Robots Hopped . | . . . Potential Cave-ins . | . . . Cave-ins Triggered . | . . . Exploration Rate (%) 52 | 3 95 59 Regions Visited 2 Branch Regions 1 Pre-discovered Areas 2 | . . 2 Known Exits Taken . | . . . Unknown Exits Taken 2 | 1 1 . Scrap Searched 3 | . . 3 Spaces Dug 28 | . . 28 Terrain Destroyed 104 | . 27 77 Melee 11 | . . 11 Projectile 1 | . . 1 AOE 92 | . 27 65 Terrain Rammed . | . . . Walls Destroyed . | . . . Machines Disabled . | . . . Actions | -11 -10 -10 --------- Run | Yrd Mat Sub Total 2793 | 69 1309 1415 Wait 174 | . 154 20 Move 2317 | 57 1000 1260 Hop . | . . . Pick Up 66 | 6 51 9 Fast Attach 19 | 6 12 1 Attach 5 | . . 5 Detach 5 | . 5 . Swap 32 | . 9 23 Drop 31 | . 21 10 Fire 91 | . 47 44 Melee 43 | . . 43 Ram 1 | . 1 . Kick 4 | . 4 . Crush 5 | . 5 . Escape Stasis . | . . . Rewire . | . . . Trap . | . . . Miscellaneous . | . . . Route ------- -11/Scrapyard -10/Materials (discovered 6 exits: [*Mat x3] / [*Min x2] / *Sub) -10/Subcaves (discovered 2 exits: Mat / [*Rec]) History --------- Turn | Location | Event 6 | -11/Scrapyard | Discovered new exit (range 15) 77 | -11/Scrapyard | Entered Materials 319 | -10/Materials | Discovered new exit (range 12) 321 | -10/Materials | Build established: Mutant 812 | -10/Materials | Repaired Imp. Heat Sink 844 | -10/Materials | Repaired Shotgun 875 | -10/Materials | Repaired Ion Engine 907 | -10/Materials | Discovered new exit (range 16) 1056 | -10/Materials | Discovered new exit (range 10) 1077 | -10/Materials | Derelicts attacked the area 1286 | -10/Materials | Discovered new exit (range 15) 1645 | -10/Materials | Discovered new exit (range 6) 1658 | -10/Materials | Build established: Hauler-Mutant 2027 | -10/Materials | Discovered new exit (range 7) 2337 | -10/Materials | Entered Subcaves 2338 | -10/Subcaves | Approached by a straggling Scientist 2578 | -10/Subcaves | Visited Clippyterm 2585 | -10/Subcaves | Learned location of Deep Caves (-6) 2585 | -10/Subcaves | Learned location of Section 7 (-2) 2734 | -10/Subcaves | Shifting Twisted Machinery released Sub. Machine Gun 3743 | -10/Subcaves | Core integrity fell below 50% 3936 | -10/Subcaves | A swath of the cavern ceiling suddenly collapsed 4686 | -10/Subcaves | A swath of the cavern ceiling suddenly collapsed 4926 | -10/Subcaves | Shifting Twisted Machinery released Sub. Power Source 4931 | -10/Subcaves | Shifting Twisted Machinery released Sub. Power Source 5015 | -10/Subcaves | Core integrity fell below 20% 5036 | -10/Subcaves | Discovered new exit (range 16) 5209 | -10/Subcaves | Identified exit to Materials 5266 | -10/Subcaves | Ambushed by Subdweller buried in earth 5281 | -10/Subcaves | Destroyed by 7W-IIV(R) with Subdweller Laser Last Messages --------------- 04878_ Corrupted Heat Sink fries itself beyond repair. 04878_ Acquired 52 matter. 04881_ Lgt. Armor Plating fries itself beyond repair. 04900_ S-10 Pest destroyed. Sub. Power Source falls loose from the Twisted Machinery. 05018_ Grenade Launcher destroyed. 05036_ EXIT=FOUND 05043_ Wheel destroyed. 05049_ Machine disabled. 05060_ Destroyed Autobeam. 05063_ The unstable cave ceiling collapses. 05063_ Autobeam Turret destroyed. 05209_ Acquired derelict log, extracted data. Loading 1 Subcaves exit... 05254_ Wheel destroyed. 05254_ Destroyed Wheel. 05257_ The unstable cave ceiling collapses. 05267_ 7W-IIV(R): "ARGHSUB!" 05281_ The unstable cave ceiling collapses. Map ----- +----------------------------------------------------+ | ??????????????????????## ?????????????????? | | ??????????????????????# #?????????????????? | | ??????????????????????? ##????????????????? | | ??????????????????????? #????????????????? | | ???????????????????????# #????????????????? | | ???????????????????????# ##????????????????? | | ???????????????????????# #????????????????? | | ??????????????????????## ##????????????????? | | ??????????????????????# ##????????????????? | | ??????????????????????## #????????????????? | | ???????????????????????# ##????????????????? | | ???????????????????????# #????????????????? | | ???????????????????????# ##????????????????? | | ???????????????????????# #????????????????? | | ?????????????????????### ##????????????????? | | ?????????????????????# ##????????????????? | | ?????????????????????# *" #????????????????? | | ?????????????????????#*"""##????????????????? | | ?????????????????????# ""##?????????????????? | | ??????????????????#### "##??????????????????? | | ?????????????????## # ;##?????????????????? | | ????????????